[Event "Mistrovství Čech mládeže 2023 - HD12"]
[Site "Harrachov, Czech Republic"]
[Date "2023.10.28"]
[Round "9.8"]
[White "Fadrný, Jáchym"]
[Black "Mauric, Jan"]
[Result "1-0"]
[TimeControl "90m + 30s"]
[WhiteElo "1365"]
[BlackElo "1260"]

1. e4 {[%clk 01:30:54]} {[%emt 00:00:04]} e5 {[%clk 01:30:38]} {[%emt
00:00:23]} 2. Nf3 {[%clk 01:30:45]} {[%emt 00:00:38]} Nc6 {[%clk 01:31:02]}
{[%emt 00:00:07]} 3. Bc4 {[%clk 01:30:27]} {[%emt 00:00:48]} Bc5 {[%clk
01:30:39]} {[%emt 00:00:53]} 4. Nc3 {[%clk 01:30:18]} {[%emt 00:00:39]} Nf6
{[%clk 01:30:02]} {[%emt 00:01:07]} 5. O-O {[%clk 01:30:06]} {[%emt 00:00:41]}
O-O {[%clk 01:29:16]} {[%emt 00:01:17]} 6. d3 {[%clk 01:28:36]} {[%emt
00:01:59]} h6 {[%clk 01:28:39]} {[%emt 00:01:09]} 7. a3 {[%clk 01:26:56]}
{[%emt 00:02:09]} d6 {[%clk 01:20:11]} {[%emt 00:08:58]} 8. b4 {[%clk
01:22:32]} {[%emt 00:04:55]} Bb6 {[%clk 01:18:42]} {[%emt 00:01:59]} 9. h3
{[%clk 01:19:30]} {[%emt 00:03:30]} Qe7 {[%clk 01:10:49]} {[%emt 00:08:24]} 10.
Bb2 {[%clk 01:12:51]} {[%emt 00:07:09]} a6 {[%clk 01:01:08]} {[%emt 00:10:12]}
11. Re1 {[%clk 01:04:04]} {[%emt 00:09:16]} Nd4 {[%clk 00:52:11]} {[%emt
00:09:26]} 12. Nxd4 {[%clk 00:54:16]} {[%emt 00:10:18]} Bxd4 {[%clk 00:52:26]}
{[%emt 00:00:16]} 13. Nd5 {[%clk 00:53:15]} {[%emt 00:01:31]} Nxd5 {[%clk
00:52:47]} {[%emt 00:00:10]} 14. Bxd4 {[%clk 00:53:37]} {[%emt 00:00:07]} Nf4
{[%clk 00:46:58]} {[%emt 00:06:19]} 15. Be3 {[%clk 00:52:16]} {[%emt 00:01:50]}
Ng6 {[%clk 00:41:57]} {[%emt 00:05:32]} 16. d4 {[%clk 00:47:23]} {[%emt
00:05:23]} Rd8 {[%clk 00:39:03]} {[%emt 00:03:24]} 17. Qd2 {[%clk 00:44:18]}
{[%emt 00:03:35]} Be6 {[%clk 00:30:10]} {[%emt 00:09:23]} 18. d5 {[%clk
00:42:28]} {[%emt 00:02:19]} Bd7 {[%clk 00:30:27]} {[%emt 00:00:14]} 19. Bb3
{[%clk 00:42:43]} {[%emt 00:00:15]} Kh7 {[%clk 00:26:22]} {[%emt 00:04:35]} 20.
Rac1 {[%clk 00:36:15]} {[%emt 00:06:58]} b6 {[%clk 00:24:08]} {[%emt 00:02:44]}
21. c4 {[%clk 00:32:50]} {[%emt 00:03:54]} a5 {[%clk 00:20:32]} {[%emt
00:04:07]} 22. c5 {[%clk 00:28:32]} {[%emt 00:04:48]} dxc5 {[%clk 00:16:55]}
{[%emt 00:04:07]} 23. bxc5 {[%clk 00:28:07]} {[%emt 00:00:54]} Rab8 {[%clk
00:16:14]} {[%emt 00:01:12]} 24. d6 {[%clk 00:26:12]} {[%emt 00:02:25]} cxd6
{[%clk 00:16:35]} {[%emt 00:00:09]} 25. c6 {[%clk 00:25:18]} {[%emt 00:01:24]}
Bxc6 {[%clk 00:15:58]} {[%emt 00:01:07]} 26. Rxc6 {[%clk 00:25:33]} {[%emt
00:00:15]} b5 {[%clk 00:13:27]} {[%emt 00:03:01]} 27. Rec1 {[%clk 00:25:32]}
{[%emt 00:00:30]} Rd7 {[%clk 00:13:17]} {[%emt 00:00:41]} 28. Qxa5 {[%clk
00:25:10]} {[%emt 00:00:51]} Rbb7 {[%clk 00:12:56]} {[%emt 00:00:53]} 29. Qb4
{[%clk 00:24:26]} {[%emt 00:01:13]} Qd8 {[%clk 00:11:26]} {[%emt 00:02:00]} 30.
Rd1 {[%clk 00:24:23]} {[%emt 00:00:32]} Ne7 {[%clk 00:11:03]} {[%emt 00:00:53]}
31. Rcxd6 {[%clk 00:24:28]} {[%emt 00:00:25]} Nc6 {[%clk 00:10:44]} {[%emt
00:00:50]} 32. Rxd7 {[%clk 00:23:49]} {[%emt 00:01:09]} Rxd7 {[%clk 00:11:01]}
{[%emt 00:00:13]} 33. Rxd7 {[%clk 00:24:14]} {[%emt 00:00:04]} Qxd7 {[%clk
00:11:28]} {[%emt 00:00:03]} 34. Qxb5 {[%clk 00:24:17]} {[%emt 00:00:28]} 1-0

[Event "Mistrovství Čech mládeže 2023 - HD12"]
[Site "Harrachov, Czech Republic"]
[Date "2023.10.28"]
[Round "9.9"]
[White "Remizov, Artem"]
[Black "Zrůst, Lukáš"]
[Result "0-1"]
[TimeControl "90m + 30s"]
[WhiteElo "1259"]
[BlackElo "1685"]

1. e4 {[%clk 01:30:56]} {[%emt 00:00:03]} c5 {[%clk 01:30:49]} {[%emt
00:00:12]} 2. Nf3 {[%clk 01:31:16]} {[%emt 00:00:09]} e6 {[%clk 01:31:12]}
{[%emt 00:00:07]} 3. d4 {[%clk 01:30:53]} {[%emt 00:00:53]} cxd4 {[%clk
01:31:40]} {[%emt 00:00:03]} 4. Nxd4 {[%clk 01:31:15]} {[%emt 00:00:08]} Nc6
{[%clk 01:32:09]} {[%emt 00:00:01]} 5. Be3 {[%clk 01:31:18]} {[%emt 00:00:27]}
Nf6 {[%clk 01:31:57]} {[%emt 00:00:41]} 6. Nc3 {[%clk 01:31:23]} {[%emt
00:00:26]} a6 {[%clk 01:31:43]} {[%emt 00:00:44]} 7. Bc4 {[%clk 01:30:41]}
{[%emt 00:01:12]} Be7 {[%clk 01:30:53]} {[%emt 00:01:19]} 8. Qd2 {[%clk
01:29:19]} {[%emt 00:01:53]} b5 {[%clk 01:30:32]} {[%emt 00:00:51]} 9. Bb3
{[%clk 01:29:22]} {[%emt 00:00:27]} b4 {[%clk 01:30:42]} {[%emt 00:00:20]} 10.
Nce2 {[%clk 01:27:35]} {[%emt 00:02:17]} Nxe4 {[%clk 01:30:33]} {[%emt
00:00:38]} 11. Qd1 {[%clk 01:24:31]} {[%emt 00:03:35]} Bb7 {[%clk 01:29:51]}
{[%emt 00:01:12]} 12. f3 {[%clk 01:24:07]} {[%emt 00:00:53]} Nf6 {[%clk
01:28:43]} {[%emt 00:01:38]} 13. O-O {[%clk 01:22:31]} {[%emt 00:02:06]} O-O
{[%clk 01:28:04]} {[%emt 00:01:08]} 14. Nxc6 {[%clk 01:20:16]} {[%emt
00:02:47]} Bxc6 {[%clk 01:28:06]} {[%emt 00:00:27]} 15. Nd4 {[%clk 01:18:04]}
{[%emt 00:02:43]} Bb7 {[%clk 01:27:34]} {[%emt 00:01:01]} 16. Qe2 {[%clk
01:13:43]} {[%emt 00:04:52]} d5 {[%clk 01:27:05]} {[%emt 00:00:59]} 17. Rad1
{[%clk 01:11:39]} {[%emt 00:02:34]} a5 {[%clk 01:25:32]} {[%emt 00:02:03]} 18.
Qf2 {[%clk 01:10:07]} {[%emt 00:02:01]} a4 {[%clk 01:25:23]} {[%emt 00:00:40]}
19. Qg3 {[%clk 01:09:41]} {[%emt 00:00:56]} Bd6 {[%clk 01:24:17]} {[%emt
00:01:36]} 20. f4 {[%clk 01:08:41]} {[%emt 00:01:30]} axb3 {[%clk 01:23:42]}
{[%emt 00:01:04]} 21. axb3 {[%clk 01:08:49]} {[%emt 00:00:22]} Ne4 {[%clk
01:23:24]} {[%emt 00:00:46]} 22. Qh3 {[%clk 01:08:12]} {[%emt 00:01:09]} Bc5
{[%clk 01:19:52]} {[%emt 00:04:02]} 23. Bf2 {[%clk 01:07:04]} {[%emt 00:01:38]}
Nxf2 {[%clk 01:20:06]} {[%emt 00:00:17]} 24. Rxf2 {[%clk 01:07:19]} {[%emt
00:00:14]} Qf6 {[%clk 01:18:38]} {[%emt 00:01:58]} 25. Qe3 {[%clk 01:06:59]}
{[%emt 00:00:51]} Ra2 {[%clk 01:14:04]} {[%emt 00:05:01]} 26. c3 {[%clk
01:06:27]} {[%emt 00:01:05]} bxc3 {[%clk 01:14:18]} {[%emt 00:00:15]} 27. bxc3
{[%clk 01:06:47]} {[%emt 00:00:10]} Rxf2 {[%clk 01:14:22]} {[%emt 00:00:25]} 28.
Qxf2 {[%clk 01:07:08]} {[%emt 00:00:10]} Re8 {[%clk 01:13:45]} {[%emt
00:01:06]} 29. Qe3 {[%clk 01:06:54]} {[%emt 00:00:44]} e5 {[%clk 01:13:30]}
{[%emt 00:00:45]} 30. fxe5 {[%clk 01:06:48]} {[%emt 00:00:36]} Qxe5 {[%clk
01:13:39]} {[%emt 00:00:21]} 31. Qxe5 {[%clk 01:07:06]} {[%emt 00:00:12]} Rxe5
{[%clk 01:14:07]} {[%emt 00:00:02]} 32. Kf1 {[%clk 01:07:21]} {[%emt 00:00:16]}
Re3 {[%clk 01:14:08]} {[%emt 00:00:27]} 33. Ne2 {[%clk 01:07:07]} {[%emt
00:00:46]} f6 {[%clk 01:14:11]} {[%emt 00:00:26]} 34. c4 {[%clk 01:06:42]}
{[%emt 00:00:55]} dxc4 {[%clk 01:14:07]} {[%emt 00:00:34]} 35. bxc4 {[%clk
01:06:44]} {[%emt 00:00:28]} Bxg2+ {[%clk 01:13:57]} {[%emt 00:00:40]} 36. Kxg2
{[%clk 01:05:47]} {[%emt 00:01:27]} Rxe2+ {[%clk 01:14:25]} {[%emt 00:00:03]}
37. Kg3 {[%clk 01:05:48]} {[%emt 00:00:28]} Re3+ {[%clk 01:14:43]} {[%emt
00:00:13]} 38. Kg2 {[%clk 01:06:04]} {[%emt 00:00:12]} Kf7 {[%clk 01:15:03]}
{[%emt 00:00:11]} 39. Rd5 {[%clk 01:06:15]} {[%emt 00:00:20]} Re5 {[%clk
01:15:08]} {[%emt 00:00:24]} 40. Rxe5 {[%clk 01:06:04]} {[%emt 00:00:41]} fxe5
{[%clk 01:15:36]} {[%emt 00:00:02]} 41. Kf3 {[%clk 01:06:24]} {[%emt 00:00:10]}
Ke6 {[%clk 01:15:52]} {[%emt 00:00:14]} 42. Ke4 {[%clk 01:06:20]} {[%emt
00:00:33]} g5 {[%clk 01:16:13]} {[%emt 00:00:08]} 43. Kf3 {[%clk 01:06:35]}
{[%emt 00:00:17]} Kf5 {[%clk 01:16:36]} {[%emt 00:00:07]} 44. Kg3 {[%clk
01:06:51]} {[%emt 00:00:13]} h5 {[%clk 01:16:56]} {[%emt 00:00:09]} 45. Kf3
{[%clk 01:06:34]} {[%emt 00:00:48]} e4+ {[%clk 01:17:22]} {[%emt 00:00:04]} 46.
Ke2 {[%clk 01:06:56]} {[%emt 00:00:08]} Kf4 {[%clk 01:17:49]} {[%emt 00:00:03]}
47. Kf1 {[%clk 01:07:23]} {[%emt 00:00:02]} Kf3 {[%clk 01:17:46]} {[%emt
00:00:34]} 48. Ke1 {[%clk 01:07:40]} {[%emt 00:00:14]} e3 {[%clk 01:17:59]}
{[%emt 00:00:17]} 49. Kf1 {[%clk 01:07:36]} {[%emt 00:00:34]} e2+ {[%clk
01:18:22]} {[%emt 00:00:07]} 50. Ke1 {[%clk 01:07:45]} {[%emt 00:00:21]} Bb4#
{[%clk 01:18:38]} {[%emt 00:00:14]} 0-1

[Event "Mistrovství Čech mládeže 2023 - HD12"]
[Site "Harrachov, Czech Republic"]
[Date "2023.10.28"]
[Round "9.12"]
[White "Mrázik, Marek"]
[Black "Štěpánková, Linda"]
[Result "1/2-1/2"]
[TimeControl "90m + 30s"]
[WhiteElo "1159"]
[BlackElo "1281"]

1. c4 {[%clk 01:23:35]} {[%emt 00:07:24]} e5 {[%clk 01:30:52]} {[%emt
00:00:09]} 2. Nc3 {[%clk 01:23:09]} {[%emt 00:00:56]} Nf6 {[%clk 01:31:11]}
{[%emt 00:00:11]} 3. g3 {[%clk 01:22:36]} {[%emt 00:01:03]} Nc6 {[%clk
01:30:49]} {[%emt 00:00:52]} 4. Bg2 {[%clk 01:22:45]} {[%emt 00:00:21]} Bc5
{[%clk 01:29:10]} {[%emt 00:02:09]} 5. e3 {[%clk 01:22:48]} {[%emt 00:00:26]}
d6 {[%clk 01:27:42]} {[%emt 00:01:58]} 6. Nge2 {[%clk 01:23:09]} {[%emt
00:00:09]} O-O {[%clk 01:25:55]} {[%emt 00:02:17]} 7. O-O {[%clk 01:23:29]}
{[%emt 00:00:10]} Bf5 {[%clk 01:19:59]} {[%emt 00:06:26]} 8. d4 {[%clk
01:19:10]} {[%emt 00:04:49]} exd4 {[%clk 01:17:21]} {[%emt 00:03:08]} 9. exd4
{[%clk 01:19:19]} {[%emt 00:00:21]} Bb4 {[%clk 01:16:21]} {[%emt 00:01:30]} 10.
Bg5 {[%clk 01:18:46]} {[%emt 00:01:03]} Bxc3 {[%clk 01:16:02]} {[%emt
00:00:50]} 11. Nxc3 {[%clk 01:19:03]} {[%emt 00:00:12]} h6 {[%clk 01:11:50]}
{[%emt 00:04:42]} 12. Be3 {[%clk 01:17:26]} {[%emt 00:02:06]} Qd7 {[%clk
01:05:15]} {[%emt 00:07:06]} 13. Qd2 {[%clk 01:05:59]} {[%emt 00:11:57]} Rfe8
{[%clk 00:45:15]} {[%emt 00:20:30]} 14. Rfe1 {[%clk 01:03:02]} {[%emt
00:03:27]} Nb4 {[%clk 00:34:41]} {[%emt 00:11:04]} 15. Bf4 {[%clk 00:51:05]}
{[%emt 00:12:27]} Nd3 {[%clk 00:29:00]} {[%emt 00:06:11]} 16. Rxe8+ {[%clk
00:47:52]} {[%emt 00:03:42]} Rxe8 {[%clk 00:27:58]} {[%emt 00:01:33]} 17. Bf1
{[%clk 00:47:43]} {[%emt 00:00:39]} Nxf4 {[%clk 00:26:46]} {[%emt 00:01:42]} 18.
Qxf4 {[%clk 00:46:19]} {[%emt 00:01:54]} Ne4 {[%clk 00:17:38]} {[%emt
00:09:38]} 19. Re1 {[%clk 00:39:09]} {[%emt 00:07:40]} Nxc3 {[%emt 00:02:39]}
20. Rxe8+ {[%clk 00:38:38]} {[%emt 00:00:44]} Qxe8 {[%clk 00:16:12]} {[%emt
00:00:04]} 21. Qxf5 {[%clk 00:38:35]} {[%emt 00:00:34]} Ne2+ {[%clk 00:12:48]}
{[%emt 00:03:53]} 22. Bxe2 {[%clk 00:35:42]} {[%emt 00:03:23]} Qxe2 {[%clk
00:13:02]} {[%emt 00:00:16]} 23. Qc8+ {[%clk 00:36:02]} {[%emt 00:00:10]} Kh7
{[%clk 00:13:07]} {[%emt 00:00:25]} 24. Qf5+ {[%clk 00:27:29]} {[%emt
00:09:03]} 1/2-1/2

[Event "Mistrovství Čech mládeže 2023 - HD12"]
[Site "Harrachov, Czech Republic"]
[Date "2023.10.28"]
[Round "9.13"]
[White "Zischka, Vít"]
[Black "Zika, Miroslav"]
[Result "1-0"]
[TimeControl "90m + 30s"]
[WhiteElo "1274"]
[BlackElo "1199"]

1. e4 {[%clk 01:30:57]} {[%emt 00:00:02]} c5 {[%clk 01:30:52]} {[%emt
00:00:08]} 2. Nf3 {[%clk 01:31:15]} {[%emt 00:00:12]} Nc6 {[%clk 01:31:15]}
{[%emt 00:00:07]} 3. d4 {[%clk 01:31:35]} {[%emt 00:00:10]} cxd4 {[%clk
01:31:41]} {[%emt 00:00:04]} 4. Nxd4 {[%clk 01:31:46]} {[%emt 00:00:20]} Nf6
{[%clk 01:32:02]} {[%emt 00:00:08]} 5. Nc3 {[%clk 01:32:02]} {[%emt 00:00:14]}
g6 {[%clk 01:32:13]} {[%emt 00:00:20]} 6. Nxc6 {[%clk 01:32:00]} {[%emt
00:00:32]} bxc6 {[%clk 01:32:14]} {[%emt 00:00:29]} 7. e5 {[%clk 01:31:55]}
{[%emt 00:00:35]} Ng8 {[%clk 01:32:06]} {[%emt 00:00:38]} 8. Bc4 {[%clk
01:31:30]} {[%emt 00:00:54]} Qc7 {[%clk 01:31:53]} {[%emt 00:00:44]} 9. Bf4
{[%clk 01:30:50]} {[%emt 00:01:10]} Nh6 {[%clk 01:26:57]} {[%emt 00:05:26]} 10.
Qf3 {[%clk 01:28:00]} {[%emt 00:03:17]} Nf5 {[%clk 01:21:58]} {[%emt 00:05:31]}
11. Bxf7+ {[%clk 01:19:50]} {[%emt 00:08:41]} Kd8 {[%clk 01:21:54]} {[%emt
00:00:33]} 12. O-O-O {[%clk 01:15:44]} {[%emt 00:04:36]} Rb8 {[%clk 01:20:59]}
{[%emt 00:01:25]} 13. Rhe1 {[%clk 01:03:34]} {[%emt 00:12:41]} Qb6 {[%clk
01:20:31]} {[%emt 00:00:58]} 14. Bb3 {[%clk 01:02:55]} {[%emt 00:01:09]} Nd4
{[%clk 01:20:01]} {[%emt 00:01:00]} 15. Qe4 {[%clk 00:55:44]} {[%emt 00:07:37]}
Nxb3+ {[%clk 01:19:46]} {[%emt 00:00:48]} 16. axb3 {[%clk 00:55:42]} {[%emt
00:00:32]} Qxf2 {[%clk 01:15:04]} {[%emt 00:05:12]} 17. e6 {[%clk 00:49:42]}
{[%emt 00:06:31]} Rb7 {[%clk 01:13:05]} {[%emt 00:02:28]} 18. Be5 {[%clk
00:48:00]} {[%emt 00:02:13]} Bh6+ {[%clk 01:11:07]} {[%emt 00:02:26]} 19. Kb1
{[%clk 00:47:27]} {[%emt 00:01:05]} Re8 {[%clk 01:05:59]} {[%emt 00:05:36]} 20.
exd7 {[%clk 00:42:07]} {[%emt 00:05:52]} Rxd7 {[%clk 01:01:51]} {[%emt
00:04:37]} 21. Qxc6 {[%clk 00:40:47]} {[%emt 00:01:51]} 1-0

[Event "Mistrovství Čech mládeže 2023 - HD12"]
[Site "Harrachov, Czech Republic"]
[Date "2023.10.28"]
[Round "9.14"]
[White "Ta, Xuan Nguyen"]
[Black "Ličková, Anna"]
[Result "0-1"]
[TimeControl "90m + 30s"]
[WhiteElo "1252"]
[BlackElo "1366"]

1. Nf3 {[%clk 01:30:58]} d5 {[%clk 01:30:02]} {[%emt 00:00:59]} 2. d4 {[%clk
01:31:13]} {[%emt 00:00:15]} c5 {[%clk 01:26:17]} {[%emt 00:04:16]} 3. Bf4
{[%clk 01:29:45]} {[%emt 00:01:57]} e6 {[%clk 01:24:57]} {[%emt 00:01:49]} 4.
g3 {[%clk 01:25:58]} {[%emt 00:04:18]} Nc6 {[%clk 01:17:10]} {[%emt 00:08:17]}
5. Bg2 {[%clk 01:22:07]} {[%emt 00:04:21]} Qb6 {[%clk 01:07:02]} {[%emt
00:10:35]} 6. O-O {[%clk 01:12:17]} {[%emt 00:10:23]} Nf6 {[%clk 00:59:20]}
{[%emt 00:08:13]} 7. b3 {[%emt 00:03:47]} cxd4 {[%clk 00:58:26]} {[%emt
00:01:19]} 8. Nbd2 {[%clk 01:06:34]} {[%emt 00:02:59]} Bb4 {[%clk 00:52:53]}
{[%emt 00:06:04]} 9. c4 {[%clk 01:05:25]} {[%emt 00:01:38]} O-O {[%clk
00:48:13]} {[%emt 00:05:11]} 10. Qc2 {[%clk 01:00:45]} {[%emt 00:05:10]} Bc3
{[%clk 00:44:03]} {[%emt 00:04:40]} 11. Rad1 {[%clk 00:55:14]} {[%emt
00:06:00]} Nb4 {[%clk 00:36:28]} {[%emt 00:08:06]} 12. Qb1 {[%clk 00:54:37]}
{[%emt 00:01:07]} Re8 {[%clk 00:35:57]} {[%emt 00:01:01]} 13. Be5 {[%clk
00:53:43]} {[%emt 00:01:24]} Nd7 {[%clk 00:32:39]} {[%emt 00:03:48]} 14. Ng5
{[%clk 00:38:48]} {[%emt 00:15:24]} g6 {[%clk 00:27:00]} {[%emt 00:06:10]} 15.
Ngf3 {[%clk 00:35:06]} {[%emt 00:04:12]} f6 {[%clk 00:22:45]} {[%emt 00:04:45]}
16. Bf4 {[%clk 00:35:23]} {[%emt 00:00:13]} g5 {[%clk 00:22:23]} {[%emt
00:00:52]} 17. Bxg5 {[%clk 00:34:38]} {[%emt 00:01:15]} fxg5 {[%clk 00:22:41]}
{[%emt 00:00:12]} 18. Nxg5 {[%clk 00:35:00]} {[%emt 00:00:08]} Nf6 {[%clk
00:08:53]} {[%emt 00:14:17]} 19. h4 {[%clk 00:31:52]} {[%emt 00:03:38]} Bxd2
{[%clk 00:07:47]} {[%emt 00:01:37]} 20. Rxd2 {[%clk 00:31:48]} {[%emt
00:00:34]} dxc4 {[%clk 00:07:08]} {[%emt 00:01:09]} 21. bxc4 {[%clk 00:31:17]}
{[%emt 00:01:00]} Nc6 {[%clk 00:06:52]} {[%emt 00:00:41]} 22. Qc2 {[%clk
00:28:02]} {[%emt 00:03:51]} Re7 {[%clk 00:04:17]} {[%emt 00:03:06]} 23. c5
{[%clk 00:27:34]} {[%emt 00:00:57]} Qc7 {[%clk 00:04:05]} {[%emt 00:00:41]} 24.
f3 {[%clk 00:27:15]} {[%emt 00:00:49]} Rg7 {[%clk 00:03:16]} {[%emt 00:01:19]}
25. Kh2 {[%clk 00:26:39]} {[%emt 00:01:07]} h6 {[%clk 00:03:29]} {[%emt
00:00:17]} 26. f4 {[%clk 00:25:11]} {[%emt 00:01:58]} Ng4+ {[%clk 00:03:21]}
{[%emt 00:00:38]} 27. Kg1 {[%clk 00:23:36]} {[%emt 00:02:04]} Ne3 {[%clk
00:02:54]} {[%emt 00:00:58]} 28. Qe4 {[%clk 00:23:00]} {[%emt 00:01:06]} hxg5
{[%clk 00:03:03]} {[%emt 00:00:21]} 29. Rf2 {[%clk 00:22:41]} {[%emt 00:00:48]}
Nxg2 {[%clk 00:03:23]} {[%emt 00:00:11]} 30. Rxg2 {[%clk 00:22:13]} {[%emt
00:00:58]} gxf4 {[%clk 00:03:17]} {[%emt 00:00:36]} 31. gxf4 {[%clk 00:22:13]}
{[%emt 00:00:29]} Rxg2+ {[%clk 00:03:43]} {[%emt 00:00:06]} 32. Kxg2 {[%clk
00:22:31]} {[%emt 00:00:11]} Qg7+ {[%clk 00:04:05]} {[%emt 00:00:08]} 33. Kf2
{[%clk 00:22:49]} {[%emt 00:00:11]} Qh7 {[%clk 00:02:51]} {[%emt 00:01:43]} 34.
Qg2+ {[%clk 00:22:34]} {[%emt 00:00:46]} Kf7 {[%clk 00:02:26]} {[%emt
00:00:53]} 35. Qg3 {[%clk 00:22:21]} {[%emt 00:00:46]} Bd7 {[%clk 00:02:39]}
{[%emt 00:00:17]} 36. Qh3 {[%clk 00:21:49]} {[%emt 00:01:01]} Rh8 {[%clk
00:02:53]} {[%emt 00:00:17]} 37. Kg3 {[%clk 00:21:52]} {[%emt 00:00:27]} Qg6+
{[%clk 00:03:12]} {[%emt 00:00:11]} 38. Kf2 {[%clk 00:21:59]} {[%emt 00:00:23]}
Qf5 {[%clk 00:03:09]} {[%emt 00:00:33]} 39. Qg3 {[%clk 00:22:16]} {[%emt
00:00:12]} Rg8 {[%clk 00:03:20]} {[%emt 00:00:20]} 40. Qh2 {[%clk 00:21:59]}
{[%emt 00:00:45]} Rg4 {[%clk 00:03:26]} {[%emt 00:00:25]} 0-1

[Event "Mistrovství Čech mládeže 2023 - HD12"]
[Site "Harrachov, Czech Republic"]
[Date "2023.10.28"]
[Round "9.15"]
[White "Koupil, Štěpán"]
[Black "Zeman, Jonáš"]
[Result "1-0"]
[TimeControl "90m + 30s"]
[WhiteElo "1467"]
[BlackElo "1216"]

1. e4 {[%clk 01:30:55]} {[%emt 00:00:04]} c5 {[%clk 01:30:53]} {[%emt
00:00:08]} 2. Nf3 {[%clk 01:31:16]} {[%emt 00:00:08]} d6 {[%clk 01:31:15]}
{[%emt 00:00:08]} 3. d4 {[%clk 01:31:16]} {[%emt 00:00:30]} cxd4 {[%clk
01:31:37]} {[%emt 00:00:08]} 4. Nxd4 {[%clk 01:31:40]} {[%emt 00:00:07]} Nf6
{[%clk 01:31:49]} {[%emt 00:00:18]} 5. Nc3 {[%clk 01:31:59]} {[%emt 00:00:11]}
g6 {[%clk 01:32:03]} {[%emt 00:00:16]} 6. Be2 {[%clk 01:32:06]} {[%emt
00:00:23]} Bg7 {[%clk 01:32:16]} {[%emt 00:00:16]} 7. Be3 {[%clk 01:32:04]}
{[%emt 00:00:33]} Bd7 {[%clk 01:31:53]} {[%emt 00:00:53]} 8. O-O {[%clk
01:31:54]} {[%emt 00:00:40]} O-O {[%clk 01:31:58]} {[%emt 00:00:24]} 9. h3
{[%clk 01:30:56]} {[%emt 00:01:29]} Nc6 {[%clk 01:31:04]} {[%emt 00:01:23]} 10.
Qd2 {[%clk 01:29:55]} {[%emt 00:01:30]} Rc8 {[%clk 01:30:39]} {[%emt 00:00:55]}
11. f4 {[%clk 01:26:39]} {[%emt 00:03:47]} a6 {[%clk 01:26:58]} {[%emt
00:04:12]} 12. Kh1 {[%clk 01:23:08]} {[%emt 00:04:00]} Qc7 {[%clk 01:24:47]}
{[%emt 00:02:41]} 13. Rad1 {[%clk 01:17:58]} {[%emt 00:05:41]} b5 {[%clk
01:20:00]} {[%emt 00:05:17]} 14. a3 {[%clk 01:13:36]} {[%emt 00:04:52]} Na5
{[%clk 01:17:37]} {[%emt 00:02:53]} 15. Nf3 {[%clk 01:11:12]} {[%emt 00:02:53]}
Bc6 {[%clk 01:13:50]} {[%emt 00:04:18]} 16. e5 {[%clk 01:03:33]} {[%emt
00:08:09]} dxe5 {[%clk 01:12:12]} {[%emt 00:02:07]} 17. fxe5 {[%clk 01:03:50]}
{[%emt 00:00:13]} Rfd8 {[%clk 01:10:02]} {[%emt 00:02:40]} 18. Nd4 {[%clk
01:00:17]} {[%emt 00:04:04]} Qxe5 {[%clk 01:05:00]} {[%emt 00:05:30]} 19. b4
{[%clk 00:53:55]} {[%emt 00:06:53]} Qg3 {[%clk 00:38:37]} {[%emt 00:26:53]} 20.
Bf3 {[%clk 00:38:11]} {[%emt 00:16:14]} Nc4 {[%clk 00:37:01]} {[%emt 00:02:06]}
21. Qc1 {[%clk 00:37:07]} {[%emt 00:01:34]} Bxf3 {[%clk 00:35:14]} {[%emt
00:02:17]} 22. Rxf3 {[%clk 00:36:26]} {[%emt 00:01:12]} Qc7 {[%clk 00:34:09]}
{[%emt 00:01:34]} 23. Rdf1 {[%clk 00:30:35]} {[%emt 00:06:21]} Qd6 {[%clk
00:18:02]} {[%emt 00:16:37]} 24. Rd1 {[%clk 00:28:06]} {[%emt 00:02:59]} Qc7
{[%clk 00:11:11]} {[%emt 00:07:21]} 25. Rdf1 {[%clk 00:25:21]} {[%emt
00:03:15]} Nxe3 {[%clk 00:05:12]} {[%emt 00:06:29]} 26. Qxe3 {[%clk 00:25:25]}
{[%emt 00:00:25]} e6 {[%clk 00:03:20]} {[%emt 00:02:23]} 27. Nb3 {[%clk
00:23:34]} {[%emt 00:02:22]} Rd7 {[%clk 00:03:15]} {[%emt 00:00:34]} 28. Nc5
{[%clk 00:23:35]} {[%emt 00:00:29]} Rd6 {[%clk 00:02:59]} {[%emt 00:00:47]} 29.
Rxf6 {[%clk 00:22:20]} {[%emt 00:01:44]} Bxf6 {[%clk 00:03:12]} {[%emt
00:00:17]} 30. Rxf6 {[%clk 00:22:41]} {[%emt 00:00:10]} Qe7 {[%clk 00:03:11]}
{[%emt 00:00:30]} 31. Rf1 {[%clk 00:21:59]} {[%emt 00:01:12]} Rcd8 {[%clk
00:02:52]} {[%emt 00:00:49]} 32. N5e4 {[%clk 00:21:31]} {[%emt 00:00:58]} Rd4
{[%clk 00:02:48]} {[%emt 00:00:34]} 33. Nf6+ {[%clk 00:19:43]} {[%emt
00:02:18]} Kg7 {[%clk 00:03:02]} {[%emt 00:00:16]} 34. Qe5 {[%clk 00:18:37]}
{[%emt 00:01:35]} Kh6 {[%clk 00:03:04]} {[%emt 00:00:29]} 35. Qxd4 {[%clk
00:17:54]} {[%emt 00:01:13]} Rxd4 {[%clk 00:03:20]} {[%emt 00:00:14]} 36. Ng8+
{[%clk 00:18:04]} {[%emt 00:00:21]} 1-0